bitfinex-derivatives/quotes_ETHF0:USTF0_20250730
["timestamp","ask_amount","ask_price","bid_price","bid_amount"]
[1753878922718,3.8165,3773.2,3773.1,0.53008]
[1753878922920,0.53009,3773.1,3772.9,0.53012]
[1753878923225,3.8165,3773.0,3772.9,0.53012]
[1753878923620,0.53015,3772.7,3772.6,3.2078]
[1753878923818,0.53018,3772.6,3772.5,0.53017]
[1753878924014,0.53017,3772.6,3772.3,0.53019]
[1753878924318,0.53016,3772.7,3772.5,0.53017]
[1753878924619,0.9084,3772.3,3772.2,0.53022]
[1753878924820,3.8165,3772.7,3772.6,0.53016]
[1753878925022,3.2078,3772.8,3772.3,2.7947]
[1753878925222,3.8165,3772.5,3772.3,2.7947]
[1753878925416,3.8165,3772.4,3772.3,0.5302]
[1753878925617,3.8165,3772.4,3772.3,1.8193]
[1753878925818,3.8165,3772.4,3772.3,3.3249]
[1753878926022,0.9084,3772.4,3772.3,3.3249]
[1753878928419,3.2078,3772.4,3771.9,0.53026]
[1753878928624,3.7153,3771.9,3771.8,0.1961902]
[1753878929123,47.7231,3771.9,3771.8,0.1961902]
[1753878929820,67.0091,3771.9,3771.8,0.1961902]
[1753878931118,0.53033,3771.4,3771.2,0.01856148]
[1753878931311,3.7153,3771.3,3771.2,0.01856148]
[1753878933126,20.1527,3771.3,3771.2,2.91576148]
[1753878933522,19.281,3771.3,3771.2,3.45526148]
[1753878933827,22.9963,3771.3,3771.2,2.91576148]
[1753878934123,22.9963,3771.3,3771.2,0.01856148]
[1753878934919,19.281,3771.3,3771.2,2.91576148]
[1753878935119,19.281,3771.3,3771.2,3.45526148]
[1753878935323,3.2078,3771.6,3771.5,0.53032]
[1753878935627,60.079,3771.9,3771.8,0.53028]
[1753878935819,60.9507,3771.9,3771.8,3.42748]
[1753878936022,4.6996,3772.3,3772.2,0.53022]
[1753878936226,22.4858,3772.3,3772.2,3.42742]
[1753878936524,0.8717,3772.1,3771.5,1.32577]
[1753878936727,0.8717,3771.8,3771.3,2.8972]
[1753878936921,22.4848,3771.9,3771.3,2.8972]
[1753878937126,3.7153,3771.4,3771.3,0.53035]
[1753878938226,3.2078,3771.5,3771.2,0.54891148]
[1753878938417,3.73813,3771.5,3771.3,0.53034]
[1753878938618,0.53035,3771.3,3771.2,0.01856148]
[1753878938824,4.24565,3771.3,3771.2,0.01856148]
[1753878939426,44.5153,3771.3,3771.2,0.01856148]
[1753878939921,63.7893,3771.3,3771.2,0.01856148]
[1753878940722,60.074,3771.3,3770.3,1.3375]
[1753878940925,1.4918,3770.7,3770.4,1.3375]
[1753878941231,3.7153,3770.6,3770.5,3.42765]
[1753878941830,3.7153,3770.6,3770.5,2.8972]
[1753878942128,1.40214,3770.6,3770.5,2.8972]
[1753878942324,2.3635,3770.6,3770.5,2.8972]
[1753878943129,3.7153,3770.6,3770.5,2.8972]
[1753878943329,2.3635,3770.6,3770.5,2.8972]
[1753878943928,3.7153,3770.6,3770.5,2.8972]
[1753878946037,0.53047,3770.4,3770.3,0.53048]
[1753878946251,0.8717,3770.4,3770.3,3.42768]
[1753878947029,3.2078,3770.8,3770.7,0.53043]
[1753878947236,20.1327,3770.8,3770.7,3.42763]
[1753878947534,3.7153,3770.7,3770.2,2.8972]
[1753878947735,3.2078,3770.6,3770.2,1.3375]
[1753878947932,2.3635,3770.3,3770.2,1.3375]
[1753878948142,2.3635,3770.0,3769.9,2.8972]
[1753878948334,2.8436,3770.0,3769.9,0.53053]
[1753878948637,3.7153,3770.0,3769.9,0.53053]
[1753878948832,3.7153,3770.0,3769.9,1.86803]
[1753878949027,3.7153,3770.0,3769.9,2.8972]
[1753878950634,3.2078,3770.2,3770.1,0.5395]
[1753878950839,19.255,3770.7,3770.5,0.53046]
[1753878951135,20.65714,3770.7,3770.6,2.8972]
[1753878951540,22.14894,3770.7,3770.6,2.8972]
[1753878951740,0.53051,3770.2,3770.1,0.53051]
[1753878951927,0.53051,3770.2,3769.8,0.73579428]
[1753878951928,0.53053,3770.0,3769.8,0.19629428]
[1753878952241,3.7153,3769.9,3769.8,1.53379428]
[1753878953338,3.7153,3769.9,3769.8,0.19629428]
[1753878953339,6.9231,3769.9,3769.8,0.19629428]
[1753878953931,6.91766324,3769.9,3769.8,0.19629428]
[1753878954142,47.71766324,3769.9,3769.8,0.19629428]
[1753878954536,0.8717,3770.2,3770.1,0.53051]
[1753878954740,23.3285,3770.4,3770.3,0.53049]
[1753878955041,23.3285,3770.4,3770.3,3.42769]
[1753878955042,24.8203,3770.4,3770.3,3.42769]
[1753878955244,23.3285,3770.4,3770.3,3.42769]
[1753878955440,22.4568,3770.4,3770.3,2.8972]
[1753878955640,2.3635,3770.3,3770.1,0.53051]
[1753878955835,22.98728,3770.4,3770.3,0.53049]
[1753878956041,22.4568,3770.4,3770.3,0.53049]
[1753878956242,3.2078,3770.4,3769.9,0.53054]
[1753878956448,3.7153,3769.9,3769.8,0.72684428]
[1753878956838,0.53054,3770.0,3769.8,0.72684428]
[1753878957044,19.246,3770.2,3769.8,0.19629428]
[1753878957245,20.8043,3770.2,3770.1,0.5305]
[1753878957444,4.0661,3770.4,3770.3,0.53049]
[1753878957636,4.0661,3770.4,3770.3,3.32719]
[1753878957946,23.3101,3770.4,3770.3,3.32719]
[1753878958335,26.2524,3770.4,3770.3,3.32719]
[1753878959048,3.2078,3770.4,3770.3,3.86899]
[1753878959249,19.245,3770.6,3770.5,3.86896]
[1753878959644,19.245,3770.6,3770.2,0.53049]
[1753878959846,3.8006,3770.5,3769.9,2.7967]
[1753878960050,0.53051,3770.2,3770.0,0.53053]
[1753878960353,3.8006,3770.1,3770.0,1.2938]
[1753878960643,0.53053,3770.0,3769.8,0.19629428]
[1753878960851,7.0084,3769.9,3769.8,0.19629428]
[1753878961146,3.8006,3768.9,3768.8,3.2078]
[1753878961351,4.33137,3768.3,3768.2,0.01857626]
[1753878961548,3.8006,3768.3,3768.2,0.01857626]
[1753878962550,40.8,3768.9,3768.5,1.5029]
[1753878962845,0.8583,3768.6,3768.3,3.3384]
[1753878963048,0.8583,3768.6,3768.4,0.53075]
[1753878963242,0.8583,3768.7,3768.6,0.53073]
[1753878963551,3.8006,3768.7,3768.6,0.53073]
[1753878963749,0.8583,3768.7,3768.6,3.32743]
[1753878964138,40.8,3768.9,3768.8,3.3274]
[1753878964341,3.2078,3769.1,3769.0,3.32737]
[1753878964645,38.201,3769.8,3769.7,3.32727]
[1753878964847,23.0356,3769.8,3769.7,0.53057]
[1753878965056,20.0933,3769.8,3769.7,3.32727]
[1753878965347,20.0923,3769.8,3769.7,3.32727]
[1753878965844,2.4166,3769.8,3769.7,3.32727]
[1753878966039,3.2078,3770.0,3769.7,1.82437]
[1753878966245,0.8583,3770.3,3770.2,0.5305]
[1753878966546,2.4166,3770.3,3770.2,3.3272]
[1753878966747,0.8583,3770.3,3770.2,3.3272]
[1753878966946,19.231,3770.3,3769.7,1.32643]
[1753878967247,19.231,3770.3,3767.9,7.9595216]
[1753878967248,3.8006,3770.1,3769.5,1.3265]
[1753878967448,3.8006,3769.9,3769.6,0.53057]
[1753878967644,3.78775342,3769.7,3769.6,0.53057]
[1753878968046,2.92945342,3769.7,3769.4,0.53061]
[1753878968247,19.23,3769.8,3769.7,0.53057]
[1753878968638,3.2078,3769.9,3769.7,0.53057]
[1753878968844,20.0853,3769.8,3769.7,3.32727]
[1753878969849,20.0853,3769.8,3769.7,3.34470886]
[1753878970052,20.0843,3769.8,3769.7,3.34470886]
[1753878970245,23.0266,3769.8,3769.7,3.34470886]
[1753878970440,23.0266,3769.8,3769.7,0.54800886]
[1753878970647,21.6426,3769.8,3769.7,0.55672829]
[1753878970946,23.0266,3769.8,3769.7,0.55672829]
[1753878971150,23.0266,3769.8,3769.7,0.02615829]
[1753878972654,23.0216,3769.8,3769.7,0.02615829]
[1753878972951,63.8216,3769.8,3769.7,1.52905829]
[1753878973149,43.0423,3769.8,3769.7,1.52905829]
[1753878973346,21.4623,3769.8,3769.7,1.52905829]
[1753878974046,23.0206,3769.8,3769.7,0.02615829]
[1753878974249,21.6366,3769.8,3769.7,0.02615829]
[1753878974452,2.2423,3769.8,3769.7,2.82285829]
[1753878974651,21.4613,3769.8,3769.7,2.82285829]
[1753878974954,1.384,3769.8,3769.7,2.82285829]
[1753878975159,1.384,3769.8,3769.7,3.36455829]
[1753878975845,19.216,3770.0,3769.8,0.53056]
[1753878976044,0.53051,3770.2,3769.7,3.36455829]
[1753878976251,1.384,3769.9,3769.7,0.02615829]
[1753878976452,0.53058,3769.7,3769.5,0.53059]
[1753878976755,0.53058,3769.7,3769.4,2.7967]
[1753878976756,2.4166,3769.5,3769.4,1.8244]
[1753878977254,2.4166,3769.5,3769.4,1.2938]
[1753878977554,2.4166,3769.5,3769.4,2.7967]
[1753878977759,2.77286,3769.8,3769.7,0.53057]
[1753878977950,23.0136,3769.8,3769.7,2.03347]
[1753878978550,0.53057,3769.7,3769.6,0.53057]
[1753878978850,21.6266,3769.7,3769.6,0.54806092]
[1753878979046,21.6266,3769.7,3769.6,2.05096092]
[1753878979358,21.6266,3769.7,3769.6,0.01749092]
[1753878979856,23.54118,3769.7,3769.6,0.02623638]
[1753878980555,23.0106,3769.7,3769.6,0.02623638]
[1753878981556,28.0106,3769.7,3769.6,0.02623638]
[1753878981761,1.38901,3768.7,3768.5,1.5029]
[1753878982055,1.98536719,3768.6,3768.5,3.32743]
[1753878982358,1.98536719,3768.6,3768.5,2.7967]
[1753878982656,1.98536719,3768.6,3768.5,1.2938]
[1753878982857,5.19316719,3768.6,3768.5,1.2938]
[1753878983159,5.19316719,3768.6,3767.8,0.19639848]
[1753878983160,0.53082,3767.9,3767.8,0.19639848]
[1753878983360,23.79992,3767.9,3767.8,0.19639848]
[1753878983554,64.59992,3767.9,3767.8,0.19639848]
[1753878984059,66.15822,3767.9,3767.8,0.19639848]
[1753878984359,72.26256693,3767.9,3766.8,4.7107]
[1753878984561,2.4166,3767.2,3766.8,3.2078]
[1753878984755,0.8583,3766.9,3766.5,1.5029]
[1753878984960,0.8583,3766.7,3766.6,2.03391]
[1753878985355,19.45433453,3767.1,3767.0,0.53095]
[1753878985556,19.98003453,3767.1,3767.0,1.5029]
[1753878985760,1.384,3767.1,3767.0,1.5029]
[1753878985952,20.585,3767.1,3767.0,1.5029]
[1753878986154,1.384,3767.1,3767.0,2.0446]
[1753878986353,20.584,3767.1,3767.0,2.0446]
[1753878986559,1.384,3767.1,3767.0,2.0446]
[1753878986752,1.384,3767.1,3767.0,1.5029]
[1753878986958,2.4166,3767.0,3766.9,0.3428]
[1753878987161,0.53095,3767.0,3766.7,0.53098]
[1753878987360,0.8964,3766.9,3766.7,0.53098]
[1753878987572,1.4812,3766.8,3766.7,0.53098]
[1753878987861,0.8964,3766.8,3766.7,2.40498]
[1753878988458,1.3105,3767.3,3767.1,0.53094]
[1753878988764,20.0974,3767.2,3767.1,1.5306]
[1753878988960,0.8964,3767.2,3767.1,1.5306]
[1753878989160,20.0944,3767.2,3767.1,1.5306]
[1753878989667,20.0934,3767.2,3767.1,1.5306]
[1753878989961,0.8964,3767.2,3767.1,1.5306]
[1753878990161,1.3105,3767.3,3767.2,2.60362]
[1753878990765,23.2992,3768.3,3768.2,3.46028]
[1753878991061,24.7804,3768.3,3768.2,3.46028]
[1753878991262,0.53078,3768.2,3768.0,0.5308]
[1753878991456,0.8964,3768.1,3767.9,0.53082]
[1753878991658,0.8964,3768.0,3767.9,2.06142]
[1753878991859,22.4028,3768.3,3768.2,0.53078]
[1753878992160,4.1042,3768.3,3768.2,2.06138]
[1753878992357,23.2982,3768.3,3768.2,3.46028]
[1753878992559,26.0899,3768.3,3768.2,3.46028]
[1753878992859,26.0899,3768.3,3768.1,0.53079]
[1753878993065,3.3225,3768.1,3767.8,2.9295]
[1753878993362,3.6881,3767.9,3767.4,6.1373]
[1753878993563,19.193,3768.0,3767.5,1.32721]
[1753878993764,2.7917,3767.8,3767.6,0.53087]
[1753878994064,1.42726,3767.7,3767.5,0.53087]
[1753878994255,2.3776,3767.6,3767.5,0.53087]
[1753878994456,0.8964,3767.5,3767.4,3.2078]
[1753878994656,0.5309,3767.4,3767.1,1.3989]
[1753878994859,3.2078,3767.2,3766.6,0.53099]
[1753878995067,2.3776,3767.0,3766.6,0.53099]
[1753878995262,2.3776,3766.8,3766.7,0.53098]
[1753878995463,2.3776,3766.8,3766.7,1.92988]
[1753878995762,41.33094,3767.1,3766.9,0.53096]
[1753878995961,20.0834,3767.0,3766.9,0.53096]
[1753878996161,19.187,3767.0,3766.9,0.01747746]
[1753878996559,20.6682,3767.0,3766.9,2.94697746]
[1753878996761,22.8751,3767.0,3766.9,0.01747746]
[1753878997460,19.187,3767.0,3766.9,0.02621619]
[1753878998060,22.8751,3767.0,3766.9,0.02621619]
[1753878998260,0.53102,3766.5,3766.4,3.2078]
[1753878998462,0.49606508,3766.5,3766.4,3.2078]
[1753878998765,0.49606508,3766.5,3766.4,6.1373]
[1753878998766,0.8964,3766.5,3766.4,6.1373]
[1753878999364,1.42742,3766.5,3766.4,6.1373]
[1753878999560,19.715,3766.7,3766.5,2.9295]
[1753878999763,0.53096,3767.0,3766.6,0.53101]
[1753878999960,19.183,3766.9,3766.8,4.00258]
[1753879000167,20.0794,3766.9,3766.8,2.9295]
[1753879000366,0.8964,3766.7,3766.6,1.3989]
[1753879000572,2.3776,3766.7,3766.6,3.46051]
[1753879000961,2.3776,3766.7,3766.4,3.2078]
[1753879001270,0.8964,3766.3,3766.0,4.7384]
[1753879001473,0.8964,3766.2,3766.1,0.53107]
[1753879001672,0.8964,3766.1,3766.0,3.2078]
[1753879002060,0.8964,3766.1,3766.0,4.7384]
[1753879002264,0.8964,3766.1,3766.0,6.1373]
[1753879003178,19.182,3766.5,3766.0,3.7499]
[1753879003464,1.84158,3766.2,3766.1,1.3989]
[1753879003663,1.3105,3766.2,3766.1,1.3989]
[1753879003864,1.3105,3766.2,3766.1,2.9295]
[1753879004065,3.6881,3766.2,3766.1,2.9295]
[1753879004263,0.53109,3766.1,3765.9,0.53109]
[1753879004458,0.8964,3765.9,3765.8,0.72761278]
[1753879004660,2.3776,3765.9,3765.8,0.19650278]
[1753879005867,2.3776,3765.9,3765.8,3.12600278]
[1753879006072,3.73885,3766.4,3766.3,2.9295]
[1753879006275,26.60195,3766.4,3766.3,1.5306]
[1753879006471,2.2069,3766.1,3766.0,1.92998]
[1753879006670,44.4881,3766.1,3766.0,1.92998]
[1753879006871,3.6881,3766.1,3766.0,1.92998]
[1753879007274,40.8,3766.3,3766.2,0.53106]
[1753879007573,40.8,3766.3,3766.2,4.00266]
[1753879007770,3.2078,3766.4,3766.2,0.53106]
[1753879008073,0.53109,3766.1,3765.9,1.3989]
[1753879008267,3.6881,3766.0,3765.9,1.93001]
[1753879008775,3.6881,3766.0,3765.9,0.53111]
[1753879010373,3.6881,3765.9,3765.8,0.72762278]
[1753879010871,2.3776,3765.9,3765.8,3.65712278]
[1753879011077,0.8964,3765.9,3765.8,3.65712278]
[1753879011282,20.0634,3766.1,3766.0,3.46059]
[1753879011473,22.8551,3766.1,3766.0,2.9295]
[1753879011980,4.21921,3765.9,3765.8,0.19650278]
[1753879012182,7.42701,3765.9,3765.8,0.19650278]
[1753879013175,6.8959,3765.9,3765.8,0.19650278]
[1753879013478,26.0599,3765.9,3765.8,0.19650278]
[1753879014074,4.21929,3765.3,3765.2,0.01859106]
[1753879014276,26.58909,3765.3,3765.2,0.01859106]
[1753879015168,26.59009,3765.3,3765.2,0.01859106]
[1753879015371,23.2662,3765.3,3765.2,2.94809106]
[1753879015573,4.1042,3765.3,3765.2,2.94809106]
[1753879016082,4.1042,3765.9,3765.8,1.93002]
[1753879016374,40.8,3766.2,3765.8,1.93002]
[1753879016375,20.0564,3766.2,3766.1,0.53108]
[1753879016580,0.8964,3766.2,3766.1,0.53108]
[1753879016779,20.0554,3766.2,3765.8,0.53111]
[1753879017081,0.8885,3765.9,3765.8,3.28272]
[1753879017587,3.7312,3765.9,3765.8,0.53112]
[1753879017782,2.81986,3765.5,3765.4,0.53117]
[1753879017978,4.26236,3765.5,3765.4,0.53117]
[1753879018183,0.53116,3765.5,3765.3,0.53118]
[1753879018381,3.7312,3765.4,3765.3,0.53118]
[1753879019080,3.7312,3765.4,3765.3,1.2976]
[1753879019684,0.8885,3765.4,3765.3,2.7516]
[1753879019881,0.8885,3765.4,3765.3,3.2941]
[1753879020087,19.153,3765.7,3765.6,0.53115]
[1753879020286,3.2078,3765.9,3765.8,0.53112]
[1753879020486,1.4425,3766.2,3766.1,1.82868]
[1753879020688,22.28681909,3766.2,3766.1,2.7516]
[1753879020883,23.68703174,3766.2,3766.1,1.2976]
[1753879021083,20.84433174,3766.2,3766.0,0.53108]
[1753879021283,3.7312,3766.1,3766.0,1.82868]
[1753879021488,4.26228,3766.1,3765.9,0.5311]
[1753879021688,3.7312,3765.9,3765.6,1.82874]
[1753879021883,4.53564,3765.7,3764.9,0.5425]
[1753879022187,4.26239,3765.3,3764.8,3.2078]
[1753879022487,3.7312,3765.3,3765.1,0.53121]
[1753879022789,0.8885,3765.3,3765.2,2.77019106]
[1753879022990,3.7312,3765.3,3765.2,2.77019106]
[1753879023284,3.7312,3765.3,3765.2,1.31619106]
[1753879023683,0.8885,3765.3,3765.2,2.77019106]
[1753879025392,0.8885,3765.3,3765.2,3.31269106]
[1753879025687,20.0355,3765.6,3765.5,3.28276]
[1753879025994,2.8427,3765.4,3765.3,0.53119]
[1753879026285,2.2887,3765.4,3765.3,0.53119]
[1753879026492,2.2887,3765.4,3765.3,1.82879]
[1753879026792,3.7312,3765.4,3765.3,3.28279]
[1753879027088,0.8885,3765.4,3765.3,3.28279]
[1753879027490,3.7312,3765.4,3765.3,3.28279]
[1753879027691,2.331,3765.4,3765.3,3.28279]
[1753879027992,0.8885,3765.4,3765.3,3.28279]
[1753879028692,2.331,3765.4,3765.3,0.53119]
[1753879028885,0.53119,3765.3,3765.2,0.54979106]
[1753879029088,7.47019,3765.3,3765.2,0.01859106]
[1753879029592,0.53127,3764.8,3764.6,0.53128]
[1753879029781,0.8885,3764.7,3764.6,1.82888]
[1753879030092,0.8885,3764.7,3764.6,3.28288]
[1753879030291,0.53123,3765.1,3765.0,1.07303]
[1753879030292,19.139,3765.1,3765.0,1.07303]
[1753879030485,19.139,3765.1,3765.0,3.82463]
[1753879030693,0.8885,3765.4,3765.3,0.53119]
[1753879030989,20.0265,3765.4,3765.3,3.28279]
[1753879031390,22.8692,3765.4,3765.3,3.28279]
[1753879031586,0.8885,3765.4,3765.3,3.28279]
[1753879031791,20.0245,3765.8,3765.7,3.28273]
[1753879031992,3.2078,3766.0,3765.9,3.28271]
[1753879032192,24.6738,3766.0,3765.9,3.28271]
[1753879032394,26.074,3766.0,3765.9,3.28271]
[1753879032896,6.939,3766.0,3765.9,3.28271]
[1753879033097,26.074,3766.0,3765.9,3.28271]
[1753879033492,4.608,3766.5,3766.4,1.82863]
[1753879033799,23.14646101,3766.5,3766.4,3.28263]
[1753879034000,24.03496101,3766.5,3766.4,3.28263]
[1753879034195,25.47746101,3766.5,3766.4,3.28263]
[1753879034397,4.90196101,3766.5,3766.4,3.28263]
[1753879034795,4.0963,3766.9,3766.8,0.53098]
[1753879035095,0.80576699,3766.9,3766.8,3.28258]
[1753879035292,0.80576699,3766.9,3766.8,3.82438]
[1753879035695,0.947518,3767.2,3767.1,0.53094]
[1753879035896,2.331,3767.7,3766.8,12.03218]
[1753879035897,0.88912219,3767.5,3767.4,2.7516]
[1753879036100,1.0885,3767.9,3767.8,3.28244]
[1753879036294,0.6302567,3767.9,3767.8,7.03204]
[1753879036599,0.38402212,3767.9,3767.8,7.03204]
[1753879036799,0.38402212,3767.9,3767.8,6.49024]
[1753879037097,0.38402212,3767.9,3767.8,7.03204]
[1753879037700,0.2,3767.9,3767.8,7.03204]
[1753879038500,1.0885,3767.9,3767.8,6.49024]
[1753879038798,0.2,3767.9,3767.8,7.03204]
[1753879039296,0.018,3768.3,3768.2,3.82418]
[1753879039495,0.20020832,3768.3,3768.2,3.82418]
[1753879039690,0.20020832,3768.3,3768.2,7.03198]
[1753879039895,0.018,3768.3,3768.2,7.03198]
[1753879040400,0.8885,3769.2,3769.1,0.53066]
[1753879040593,3.91331309,3769.2,3769.1,1.82826]
[1753879040793,3.91331309,3769.2,3769.1,0.53066]
[1753879041002,3.7312,3769.2,3769.1,0.53066]
[1753879041197,4.1557267,3769.2,3769.1,3.28226]
[1753879041997,2.51303195,3769.2,3769.1,3.28226]
[1753879042294,3.91323195,3769.2,3769.1,1.82826]
[1753879042891,3.7312,3769.2,3769.1,0.53066]
[1753879044100,3.7312,3769.2,3769.1,0.53065]
[1753879044493,0.8885,3769.2,3769.1,3.28225]
[1753879044794,3.7312,3769.2,3769.1,3.28225]
[1753879045205,0.8885,3769.2,3769.1,3.28225]
[1753879045505,0.8885,3769.2,3769.1,3.82405]
[1753879045694,3.7312,3769.2,3769.1,0.53065]
[1753879045899,2.331,3769.2,3769.1,3.28225]
[1753879046100,0.8885,3769.2,3769.1,3.28225]
[1753879046499,3.7312,3769.2,3769.1,3.28225]
[1753879047306,2.331,3769.2,3769.1,3.28225]
[1753879047610,1.4623,3769.6,3769.4,0.53061]
[1753879047804,6.2666,3769.9,3769.8,0.53056]
[1753879048200,7.1379,3769.9,3769.8,0.53056]
[1753879048503,3.9301,3769.9,3769.8,3.37986]
[1753879050704,6.4851,3769.9,3769.8,5.76106]
[1753879050904,5.0886,3769.9,3769.8,0.53056]
[1753879051104,6.4851,3769.9,3769.8,0.53056]
[1753879051802,6.4851,3769.9,3769.8,1.47096]
[1753879052501,6.4851,3769.9,3769.8,0.53056]
[1753879052701,6.4851,3769.9,3769.8,5.77129733]
[1753879052702,3.1574,3769.9,3769.8,5.77129733]
[1753879052903,6.4851,3769.9,3769.8,0.01023733]
[1753879053706,6.26613688,3769.8,3769.7,0.53056]
[1753879054414,6.26613688,3769.8,3769.7,5.76106]
[1753879055700,1.0713,3769.9,3769.8,2.8493]
[1753879056012,0.2,3769.9,3769.8,8.9991]
[1753879056603,1.0713,3769.9,3769.8,8.45575158]
[1753879056804,7.01565,3769.9,3769.8,0.01851515]
[1753879057006,6.2851,3769.4,3769.3,0.53062]
[1753879057603,6.2851,3769.4,3769.3,2.91182]
[1753879057911,2.4156,3769.4,3769.3,5.77962]
[1753879059006,6.2851,3769.4,3769.3,4.26192]
[1753879059200,6.81573,3769.3,3769.1,0.53065]
[1753879059406,6.2851,3769.2,3769.1,0.53065]
[1753879060110,6.2851,3768.7,3768.6,3.73853]
[1753879060305,6.2851,3768.7,3768.6,8.98753]
[1753879061007,2.4156,3768.7,3768.6,8.98753]
[1753879061209,3.4263,3768.7,3768.6,8.98753]
[1753879061403,6.2851,3768.7,3768.6,8.98753]
[1753879062509,2.555,3768.7,3768.5,0.53073]
[1753879062810,2.555,3768.3,3768.1,0.53079]
[1753879063007,2.8588,3769.0,3767.8,3.2078]
[1753879063213,2.2678,3768.7,3768.1,2.0485]
[1753879063506,0.8713,3768.6,3768.5,0.53073]
[1753879063814,4.26085,3768.5,3768.3,0.53076]
[1753879064013,0.53072,3768.7,3768.4,0.5463196]
[1753879064212,19.066,3769.3,3768.8,0.53069]
[1753879064413,0.53066,3769.1,3768.9,0.53067]
[1753879064613,3.7301,3769.0,3768.9,0.53067]
[1753879065012,2.2678,3769.0,3768.9,0.5540394]
[1753879065206,3.7301,3769.0,3768.9,2.0717394]
[1753879065410,3.7301,3769.0,3768.9,3.4218394]
[1753879066012,3.7301,3769.0,3768.9,3.43053428]
[1753879066313,3.7301,3769.0,3768.9,0.03206428]
[1753879066611,0.53072,3768.7,3768.2,3.2078]
[1753879066811,3.7301,3768.6,3768.5,0.53073]
[1753879067907,0.53073,3768.6,3768.5,0.53073]
[1753879068118,0.53073,3768.6,3767.9,2.8882]
[1753879068119,2.8588,3768.5,3768.4,0.53075]
[1753879068318,3.7301,3768.5,3768.4,0.53075]
[1753879068818,3.7301,3768.5,3768.4,3.41895]
[1753879069211,2.2678,3768.9,3768.8,0.5307]
[1753879069408,2.2678,3768.9,3768.8,3.4189]
[1753879069720,0.8713,3768.9,3768.8,3.4189]
[1753879070217,0.8713,3768.9,3768.8,3.9797]
[1753879070413,3.7301,3769.3,3769.2,3.41884]
[1753879070813,4.0791,3769.7,3769.6,0.53058]
[1753879071008,6.9379,3769.7,3769.6,3.41878]
[1753879071420,6.9379,3769.7,3769.6,0.53058]
[1753879072623,6.9379,3769.7,3769.6,3.41878]
[1753879073309,4.0791,3769.7,3769.6,3.41878]
[1753879074723,0.8713,3769.7,3769.6,3.41878]
[1753879075019,1e-05,3769.9,3769.8,0.53056]
[1753879075215,1e-05,3769.9,3769.8,3.97956]
[1753879077116,1e-05,3769.9,3769.8,1.09136]
[1753879077315,1e-05,3769.9,3769.8,0.53056]
[1753879077316,1.6949236,3769.9,3769.8,0.53056]
[1753879077524,0.90721,3769.9,3769.8,0.53056]
[1753879077727,0.90721,3769.9,3769.8,3.44036]
[1753879078224,0.90721,3769.9,3769.8,3.64005598]
[1753879078617,0.90721,3769.9,3769.8,0.53056]
[1753879078923,1.69492184,3769.9,3769.8,3.44036]
[1753879079118,3.22342184,3769.9,3769.8,3.44036]
[1753879079426,3.83891,3769.9,3769.8,3.44036]
[1753879079620,3.83891,3769.9,3769.8,1.89636]
[1753879079820,4.62663112,3769.9,3769.8,1.89636]
[1753879080124,0.78773112,3769.9,3769.8,3.99916]
[1753879080525,0.78773112,3769.9,3769.8,6.53036]
[1753879080828,0.94797648,3770.7,3770.5,3.06166]
[1753879081119,1.85517648,3770.8,3770.7,5.97143]
[1753879081321,0.94797648,3770.8,3770.7,6.53023]
[1753879081725,0.94797648,3770.9,3770.8,5.9998]
[1753879081918,0.5852,3771.0,3770.9,5.9714]
[1753879082224,2.9713,3771.0,3770.9,5.9714]
[1753879082423,2.35,3771.0,3770.9,5.9714]
[1753879083123,0.9072,3771.0,3770.9,3.4402]
[1753879083324,2.4357,3771.0,3770.9,3.4402]
[1753879083928,3.8389,3771.0,3770.9,0.5304]
[1753879084518,3.8389,3771.0,3770.9,1.8962]
[1753879084826,3.8389,3771.0,3770.9,0.5304]
[1753879085027,1.4032,3770.8,3770.6,1.3658]
[1753879085325,2.3104,3770.9,3770.8,0.53042]
[1753879085520,4.7332,3770.9,3770.8,0.53042]
[1753879085719,6.2617,3770.9,3770.8,1.56622]
[1753879085923,6.2617,3770.9,3770.8,5.09072]
[1753879086126,1.4924,3770.9,3770.8,5.97142]
[1753879086320,4.7512,3771.3,3771.2,4.47596]
[1753879086631,1.5104,3771.3,3771.2,5.97136]
[1753879086822,2.368,3771.3,3771.2,5.97136]
[1753879087334,3.8965,3771.3,3771.2,5.97136]
[1753879087628,0.018,3771.3,3771.2,3.99896]
[1753879088628,0.9072,3771.7,3771.6,1.8961]
[1753879088821,0.2,3771.9,3771.8,3.99888]
[1753879089222,0.2,3771.9,3771.8,4.03968922]
[1753879089427,0.2,3771.9,3771.8,9.34297062]
[1753879091132,1.1072,3771.9,3771.8,8.78417062]
[1753879091333,4.0389,3771.9,3771.8,1.93688922]
[1753879091531,4.0389,3771.9,3771.8,3.48088922]
[1753879091732,0.2,3771.9,3771.8,3.48088922]
[1753879091933,0.2,3771.9,3771.8,9.34212701]
[1753879092235,3.8389,3772.6,3772.5,0.53017]
[1753879092438,3.8389,3772.6,3772.5,3.43997]
[1753879092832,0.9072,3772.6,3772.5,3.43997]
[1753879093034,0.9072,3772.6,3772.5,3.99877]
[1753879093233,2.4357,3772.9,3772.8,0.53014]
[1753879093431,2.4357,3772.9,3772.8,3.43994]
[1753879093624,19.9192,3773.7,3773.0,1.32528]
[1753879093829,22.8509,3773.7,3773.6,1.544]
[1753879094030,22.8509,3773.7,3773.5,0.53003]
[1753879094031,7.2467,3773.9,3773.8,0.52999]
[1753879094435,7.2467,3773.9,3773.8,0.57079922]
[1753879095231,7.2467,3773.9,3773.8,0.04080922]